fUST/lending_fUST_20250625
["ID","MTS","AMOUNT","RATE_DAILY","PERIOD"]
[367525224,1750843838571,-460.0,0.00016863,2]
[367525226,1750843838580,-461.89,0.00016863,2]
[367525228,1750843838589,-40.62601196,0.00016864,2]
[367525230,1750843838598,-460.0,0.00016864,2]
[367525232,1750843838607,-515.67632236,0.00016864,2]
[367525234,1750843838616,-460.0,0.00016864,2]
[367525236,1750843838625,-460.0,0.00016864,2]
[367525238,1750843838635,-460.0,0.00016864,2]
[367525240,1750843838644,-460.0,0.00016864,2]
[367525242,1750843838653,-460.0,0.00016864,2]
[367525244,1750843838662,-502.06,0.00016864,2]
[367525246,1750843838675,-460.0,0.00016864,2]
[367525248,1750843838684,-460.0,0.00016864,2]
[367525251,1750843838693,-460.0,0.00016864,2]
[367525253,1750843838702,-222.66706532,0.00016864,2]
[367525255,1750843838711,-460.0,0.00016864,2]
[367525257,1750843838720,-460.0,0.00016864,2]
[367525260,1750843838729,-460.0,0.00016864,2]
[367525263,1750843838739,-1441.09,0.00016864,2]
[367525265,1750843838750,-460.0,0.00016864,2]
[367525267,1750843838760,-460.0,0.00016864,2]
[367525269,1750843838770,-460.0,0.00016864,2]
[367525271,1750843838778,-460.0,0.00016864,2]
[367525273,1750843838787,-500.0,0.00016864,2]
[367525275,1750843838796,-500.0,0.00016864,2]
[367525277,1750843838805,-500.0,0.00016864,2]
[367525279,1750843838814,-500.0,0.00016864,2]
[367525281,1750843838823,-500.0,0.00016864,2]
[367525283,1750843838832,-401.87473441,0.00016864,2]
[367525285,1750843838842,-500.0,0.00016864,2]
[367525287,1750843838851,-500.0,0.00016864,2]
[367525289,1750843838860,-500.0,0.00016864,2]
[367525291,1750843838870,-500.0,0.00016864,2]
[367525293,1750843838880,-500.0,0.00016864,2]
[367525295,1750843838889,-500.0,0.00016864,2]
[367525297,1750843838898,-500.0,0.00016864,2]
[367525299,1750843838907,-500.0,0.00016864,2]
[367525301,1750843838916,-500.0,0.00016864,2]
[367525303,1750843838925,-500.0,0.00016864,2]
[367525305,1750843838935,-500.0,0.00016864,2]
[367525307,1750843838943,-500.0,0.00016864,2]
[367525309,1750843838953,-453.2311649,0.00016864,2]
[367525311,1750843838962,-500.0,0.00016864,2]
[367525313,1750843838970,-500.0,0.00016864,2]
[367525315,1750843838979,-500.0,0.00016864,2]
[367525317,1750843838988,-500.0,0.00016864,2]
[367525319,1750843838997,-500.0,0.00016864,2]
[367525321,1750843839006,-500.0,0.00016864,2]
[367525323,1750843839015,-458.77382302,0.00016864,2]
[367525324,1750843839024,-500.0,0.00016864,2]
[367525326,1750843839034,-500.0,0.00016864,2]
[367525329,1750843839043,-500.0,0.00016864,2]
[367525330,1750843839052,-500.0,0.00016864,2]
[367525333,1750843839062,-500.0,0.00016864,2]
[367525334,1750843839071,-460.0,0.00016865,2]
[367525336,1750843839081,-500.0,0.00016865,2]
[367525338,1750843839090,-500.0,0.00016865,2]
[367525340,1750843839099,-460.54124377,0.00016866,2]
[367525342,1750843839108,-460.53287782,0.00016866,2]
[367525344,1750843839117,-432.11160188,0.00016866,2]
[367525346,1750843839127,-460.0,0.00016866,2]
[367525348,1750843839135,-460.0,0.00016866,2]
[367525350,1750843839145,-460.0,0.00016866,2]
[367525352,1750843839155,-460.0,0.00016866,2]
[367525354,1750843839165,-460.0,0.00016866,2]
[367525356,1750843839174,-460.0,0.00016866,2]
[367525358,1750843839183,-460.0,0.00016866,2]
[367525360,1750843839192,-460.0,0.00016866,2]
[367525362,1750843839202,-460.0,0.00016866,2]
[367525365,1750843839211,-460.0,0.00016866,2]
[367525367,1750843839220,-500.0,0.00016866,2]
[367525369,1750843839229,-460.0,0.00016866,2]
[367525371,1750843839238,-460.0,0.00016866,2]
[367525373,1750843839247,-460.0,0.00016866,2]
[367525375,1750843839257,-460.0,0.00016866,2]
[367525377,1750843839266,-460.0,0.00016866,2]
[367525379,1750843839275,-460.0,0.00016866,2]
[367525381,1750843839284,-460.0,0.00016866,2]
[367525383,1750843839294,-460.0,0.00016866,2]
[367525385,1750843839302,-460.0,0.00016866,2]
[367525387,1750843839311,-472.29,0.00016866,2]
[367525389,1750843839320,-460.0,0.00016866,2]
[367525391,1750843839329,-460.0,0.00016866,2]
[367525393,1750843839338,-500.0,0.00016867,2]
[367525395,1750843839347,-210.76674939,0.00016901,2]
[367525397,1750843839357,-1100.16790344,0.0001694,2]
[367525399,1750843839367,-500.0,0.00017038,2]
[367525401,1750843839376,-439.02,0.00017039,2]
[367525403,1750843839385,-111288.79841527,0.0001704,7]
[367525408,1750843839422,-2825.54144224,0.0001704,7]
[367525410,1750843839431,-213.69531788,0.0001704,7]
[367525412,1750843839440,-524.21181985,0.0001704,7]
[367525414,1750843839449,-846.80634355,0.0001704,7]
[367525416,1750843839458,-12558.06783089,0.0001704,7]
[367525418,1750843839468,-460.0,0.00017136,2]
[367525420,1750843839477,-2072.83,0.00017136,2]
[367525422,1750843839486,-460.0,0.00017136,2]
[367525424,1750843839495,-616.12,0.00017136,2]
[367525426,1750843839505,-460.0,0.00017136,2]
[367525428,1750843839514,-1523.86,0.00017136,2]
[367525430,1750843839523,-460.0,0.00017136,2]
[367525432,1750843839532,-460.0,0.00017136,2]
[367525434,1750843839542,-460.0,0.00017136,2]
[367525436,1750843839552,-1583.59,0.00017136,2]
[367525438,1750843839561,-460.0,0.00017136,2]
[367525440,1750843839570,-460.0,0.00017137,2]
[367525442,1750843839579,-181.42,0.00017137,2]
[367525444,1750843839588,-192.33,0.00017137,2]
[367525446,1750843839597,-2045.99,0.00017137,2]
[367525448,1750843839606,-460.0,0.00017137,2]
[367525450,1750843839615,-460.0,0.00017137,2]
[367525452,1750843839624,-460.0,0.00017137,2]
[367525454,1750843839633,-531.08,0.00017137,2]
[367525456,1750843839642,-460.0,0.00017137,2]
[367525474,1750843839814,-460.0,0.00017137,2]
[367525476,1750843839824,-505.76,0.00017137,2]
[367525478,1750843839834,-460.0,0.00017137,2]
[367525480,1750843839843,-4516.73,0.00017137,2]
[367525504,1750843840059,-241.98501474,0.00017137,2]
[367525506,1750843840069,-460.0,0.00017137,2]
[367525508,1750843840079,-1522.03,0.00017137,2]
[367525510,1750843840088,-460.0,0.00017137,2]
[367525512,1750843840098,-461.6,0.00017137,2]
[367525514,1750843840107,-460.0,0.00017137,2]
[367525516,1750843840116,-460.0,0.00017137,2]
[367525519,1750843840124,-460.0,0.00017137,2]
[367525522,1750843840134,-460.0,0.00017137,2]
[367525525,1750843840142,-460.0,0.00017137,2]
[367525527,1750843840151,-460.0,0.00017137,2]
[367525530,1750843840160,-460.0,0.00017137,2]
[367525533,1750843840169,-460.0,0.00017137,2]
[367525535,1750843840178,-489.05,0.00017137,2]
[367525537,1750843840187,-460.0,0.00017137,2]
[367525539,1750843840197,-460.0,0.00017137,2]
[367525541,1750843840206,-461.89,0.00017137,2]
[367525543,1750843840216,-460.0,0.00017138,2]
[367525545,1750843840225,-460.0,0.00017138,2]
[367525548,1750843840234,-749.92,0.00017138,2]
[367525551,1750843840243,-460.0,0.00017138,2]
[367525554,1750843840252,-460.0,0.00017138,2]
[367525557,1750843840262,-460.0,0.00017138,2]
[367525560,1750843840271,-312.48,0.00017138,2]
[367525563,1750843840280,-460.0,0.00017138,2]
[367525566,1750843840290,-460.0,0.00017138,2]
[367525569,1750843840299,-460.0,0.00017138,2]
[367525572,1750843840308,-460.0,0.00017138,2]
[367525575,1750843840317,-695.92,0.00017138,2]
[367525578,1750843840326,-460.0,0.00017138,2]
[367525581,1750843840335,-460.0,0.00017138,2]
[367525584,1750843840344,-1728.47,0.00017138,2]
[367525587,1750843840353,-3695.45,0.00017138,2]
[367525590,1750843840362,-460.0,0.00017138,2]
[367525593,1750843840372,-460.0,0.00017138,2]
[367525596,1750843840381,-799.24,0.00017138,2]
[367525599,1750843840391,-460.0,0.00017138,2]
[367525602,1750843840399,-460.0,0.00017138,2]
[367525605,1750843840409,-374.62,0.00017138,2]
[367525608,1750843840418,-502.06,0.00017138,2]
[367525611,1750843840426,-460.0,0.00017138,2]
[367525614,1750843840435,-1441.09,0.00017138,2]
[367525616,1750843840445,-460.0,0.00017138,2]
[367525618,1750843840454,-500.0,0.0001714,2]
[367525620,1750843840463,-293.13623069,0.0001714,2]
[367525623,1750843840472,-429.08357843,0.0001714,2]
[367525626,1750843840482,-500.0,0.00017141,2]
[367525628,1750843840491,-500.0,0.00017318,2]
[367525631,1750843840501,-500.0,0.0001732,2]
[367525634,1750843840510,-500.0,0.0001732,2]
[367525637,1750843840519,-500.0,0.00017344,2]
[367525640,1750843840528,-460.0,0.0001741,2]
[367525643,1750843840539,-2072.83,0.0001741,2]
[367525646,1750843840549,-460.0,0.0001741,2]
[367525649,1750843840558,-616.12,0.0001741,2]
[367525652,1750843840567,-460.0,0.0001741,2]
[367525655,1750843840576,-1523.86,0.0001741,2]
[367525658,1750843840585,-460.0,0.0001741,2]
[367525661,1750843840594,-1583.59,0.0001741,2]
[367525665,1750843840604,-460.0,0.0001741,2]
[367525667,1750843840613,-460.0,0.00017411,2]
[367525671,1750843840625,-2045.99,0.00017411,2]
[367525674,1750843840635,-428.12083371,0.00017411,2]
[367525676,1750843840644,-460.0,0.00017411,2]
[367525679,1750843840653,-460.0,0.00017411,2]
[367525682,1750843840663,-460.0,0.00017411,2]
[367525685,1750843840675,-460.0,0.00017411,2]
[367525688,1750843840685,-505.76,0.00017411,2]
[367525691,1750843840694,-568.14,0.00017411,2]
[367525694,1750843840702,-4516.73,0.00017411,2]
[367525697,1750843840713,-364.59,0.00017411,2]
[367525700,1750843840723,-1522.03,0.00017411,2]
[367525703,1750843840733,-213.92,0.00017411,2]
[367525706,1750843840743,-461.6,0.00017411,2]
[367525709,1750843840753,-460.0,0.00017411,2]
[367525712,1750843840762,-460.0,0.00017411,2]
[367525715,1750843840771,-555.12,0.00017411,2]
[367525718,1750843840781,-460.0,0.00017411,2]
[367525721,1750843840791,-460.0,0.00017411,2]
[367525724,1750843840800,-460.0,0.00017411,2]
[367525727,1750843840809,-460.0,0.00017411,2]
[367525730,1750843840818,-460.0,0.00017411,2]
[367525733,1750843840827,-489.05,0.00017411,2]
[367525736,1750843840836,-460.0,0.00017411,2]
[367525739,1750843840845,-244.01142538,0.00017412,2]
[367525742,1750843840855,-749.92,0.00017412,2]
[367525745,1750843840863,-275.72,0.00017412,2]
[367525748,1750843840873,-608.04247293,0.00017412,2]
[367525751,1750843840882,-460.0,0.00017412,2]
[367525753,1750843840892,-460.0,0.00017412,2]
[367525755,1750843840901,-460.0,0.00017412,2]
[367525757,1750843840910,-460.0,0.00017412,2]
[367525759,1750843840920,-695.92,0.00017412,2]
[367525761,1750843840930,-460.0,0.00017412,2]
[367525763,1750843840940,-1728.47,0.00017412,2]
[367525765,1750843840949,-3695.45,0.00017412,2]
[367525767,1750843840958,-460.0,0.00017412,2]
[367525769,1750843840967,-799.24,0.00017412,2]
[367525771,1750843840976,-502.06,0.00017412,2]
[367525773,1750843840986,-460.0,0.00017412,2]
[367525775,1750843840995,-1441.09,0.00017412,2]
[367525777,1750843841005,-460.0,0.00017412,2]
[367525778,1750843841014,-500.0,0.00017413,2]
[367525779,1750843841023,-1100.16790343,0.00017455,2]
[367525780,1750843841032,-500.0,0.00017648,2]
[367525781,1750843841041,-500.0,0.00017663,2]
[367525782,1750843841050,-500.0,0.00017663,2]
[367525783,1750843841059,-460.0,0.00017684,2]
[367525784,1750843841068,-2072.83,0.00017684,2]
[367525785,1750843841076,-460.0,0.00017684,2]
[367525786,1750843841087,-616.12,0.00017684,2]
[367525787,1750843841095,-1523.86,0.00017684,2]
[367525788,1750843841104,-460.0,0.00017684,2]
[367525789,1750843841113,-1583.59,0.00017684,2]
[367525790,1750843841122,-490.54,0.00017684,2]
[367525791,1750843841130,-460.0,0.00017685,2]
[367525792,1750843841139,-2045.99,0.00017685,2]
[367525793,1750843841148,-460.0,0.00017685,2]
[367525794,1750843841156,-460.0,0.00017685,2]
[367525796,1750843841166,-460.0,0.00017685,2]
[367525797,1750843841175,-308.53,0.00017685,2]
[367525799,1750843841184,-505.76,0.00017685,2]
[367525801,1750843841193,-4516.73,0.00017685,2]
[367525803,1750843841202,-1522.03,0.00017685,2]
[367525805,1750843841210,-461.6,0.00017685,2]
[367525807,1750843841220,-460.0,0.00017685,2]
[367525809,1750843841229,-558.92,0.00017685,2]
[367525811,1750843841238,-460.0,0.00017685,2]
[367525813,1750843841247,-460.0,0.00017685,2]
[367525815,1750843841256,-352.13,0.00017685,2]
[367525817,1750843841266,-460.0,0.00017685,2]
[367525819,1750843841275,-460.0,0.00017685,2]
[367525821,1750843841283,-489.05,0.00017685,2]
[367525823,1750843841292,-460.0,0.00017685,2]
[367525825,1750843841301,-749.92,0.00017686,2]
[367525827,1750843841310,-460.0,0.00017686,2]
[367525828,1750843841319,-250.17245497,0.00017686,2]
[367525829,1750843841329,-460.0,0.00017686,2]
[367525830,1750843841338,-460.0,0.00017686,2]
[367525831,1750843841346,-695.92,0.00017686,2]
[367525832,1750843841355,-460.0,0.00017686,2]
[367525833,1750843841364,-1728.47,0.00017686,2]
[367525834,1750843841374,-3695.45,0.00017686,2]
[367525835,1750843841383,-460.0,0.00017686,2]
[367525836,1750843841392,-799.24,0.00017686,2]
[367525837,1750843841401,-502.06,0.00017686,2]
[367525838,1750843841410,-162.54,0.00017686,2]
[367525839,1750843841419,-1441.09,0.00017686,2]
[367525840,1750843841428,-460.0,0.00017686,2]
[367525841,1750843841437,-500.0,0.00017741,2]
[367525842,1750843841446,-500.0,0.00017762,2]
[367525843,1750843841455,-340.60711221,0.00017762,2]
[367525844,1750843841465,-292.0,0.00017789,2]
[367525845,1750843841474,-151.0,0.000178,2]
[367525846,1750843841483,-1000.0,0.00017855,2]
[367525847,1750843841492,-1000.0,0.00017866,2]
[367525848,1750843841502,-540.73312332,0.00017868,2]
[367525849,1750843841511,-151.0,0.00017889,2]
[367525850,1750843841520,-502.51720373,0.00017892,2]
[367525851,1750843841529,-500.0,0.00017896,2]
[367525852,1750843841538,-500.92557149,0.00017896,2]
[367525853,1750843841547,-12927.57985483,0.000179,2]
[367525854,1750843841557,-189.0,0.00017916,2]
[367525855,1750843841566,-460.0,0.00017958,2]
[367525856,1750843841575,-2072.83,0.00017958,2]
[367525857,1750843841584,-507.73136807,0.00017958,2]
[367525858,1750843841594,-616.12,0.00017958,2]
[367525859,1750843841604,-1523.86,0.00017958,2]
[367525860,1750843841613,-460.0,0.00017958,2]
[367525861,1750843841622,-1583.59,0.00017958,2]
[367525862,1750843841632,-460.0,0.00017959,2]
[367525863,1750843841641,-2045.99,0.00017959,2]
[367525864,1750843841650,-362.73812907,0.00017959,2]
[367525865,1750843841660,-460.0,0.00017959,2]
[367525866,1750843841671,-581.72,0.00017959,2]
[367525867,1750843841681,-505.76,0.00017959,2]
[367525868,1750843841690,-4516.73,0.00017959,2]
[367525869,1750843841699,-1522.03,0.00017959,2]
[367525870,1750843841708,-461.6,0.00017959,2]
[367525871,1750843841718,-460.0,0.00017959,2]
[367525872,1750843841728,-460.0,0.00017959,2]
[367525873,1750843841737,-460.0,0.00017959,2]
[367525874,1750843841747,-460.0,0.00017959,2]
[367525875,1750843841756,-460.0,0.00017959,2]
[367525876,1750843841766,-489.05,0.00017959,2]
[367525877,1750843841775,-460.0,0.00017959,2]
[367525878,1750843841785,-749.92,0.0001796,2]
[367525879,1750843841794,-460.0,0.0001796,2]
[367525880,1750843841803,-460.0,0.0001796,2]
[367525881,1750843841812,-460.0,0.0001796,2]
[367525882,1750843841821,-695.92,0.0001796,2]
[367525883,1750843841831,-460.0,0.0001796,2]
[367525884,1750843841840,-1728.47,0.0001796,2]
[367525885,1750843841849,-3695.45,0.0001796,2]
[367525886,1750843841858,-460.0,0.0001796,2]
[367525887,1750843841868,-799.24,0.0001796,2]
[367525888,1750843841877,-502.06,0.0001796,2]
[367525889,1750843841887,-1441.09,0.0001796,2]
[367525890,1750843841897,-460.0,0.0001796,2]
[367525891,1750843841906,-1100.16790343,0.0001797,2]
[367525892,1750843841915,-895.0,0.00018007,2]
[367525893,1750843841924,-895.0,0.00018038,2]
[367525894,1750843841934,-500.0,0.00018068,2]
[367525895,1750843841943,-895.0,0.0001809,2]
[367525896,1750843841953,-846.80634355,0.00018094,2]
[367525897,1750843841962,-230.22714675,0.00018094,2]
[367525898,1750843841972,-160.0,0.00018094,2]
[367525899,1750843841981,-160.0,0.00018094,2]
[367525900,1750843841991,-12558.06783089,0.00018094,2]
[367525902,1750843842000,-213.69531788,0.00018094,2]
[367525904,1750843842009,-425.18553072,0.00018094,2]
[367525906,1750843842018,-160.0,0.00018094,2]
[367525908,1750843842027,-524.21181985,0.00018094,2]
[367525910,1750843842036,-836.86812089,0.00018094,2]
[367525912,1750843842045,-160.0,0.00018094,2]
[367525914,1750843842055,-160.0,0.00018094,2]
[367525916,1750843842063,-160.0,0.00018094,2]
[367525918,1750843842072,-160.0,0.00018094,2]
[367525920,1750843842081,-160.0,0.00018094,2]
[367525922,1750843842090,-151.0,0.000181,2]
[367525924,1750843842099,-12927.57985468,0.00018141,2]
[367525926,1750843842109,-500.0,0.00018196,2]
[367525928,1750843842118,-895.0,0.000182,2]
[367525930,1750843842127,-1000.0,0.00018211,2]
[367525932,1750843842139,-500.0,0.00018211,2]
[367525934,1750843842148,-895.0,0.00018215,2]
[367525936,1750843842158,-460.0,0.00018232,2]
[367525938,1750843842167,-2072.83,0.00018232,2]
[367525940,1750843842177,-616.12,0.00018232,2]
[367525942,1750843842186,-1523.86,0.00018232,2]
[367525944,1750843842196,-460.0,0.00018232,2]
[367525946,1750843842204,-1583.59,0.00018232,2]
[367525948,1750843842213,-460.0,0.00018233,2]
[367525950,1750843842222,-2045.99,0.00018233,2]
[367525952,1750843842232,-460.0,0.00018233,2]
[367525954,1750843842240,-505.76,0.00018233,2]
[367525956,1750843842249,-4516.73,0.00018233,2]
[367525958,1750843842259,-1522.03,0.00018233,2]
[367525960,1750843842268,-461.6,0.00018233,2]
[367525962,1750843842277,-460.0,0.00018233,2]
[367525964,1750843842287,-460.0,0.00018233,2]
[367525966,1750843842296,-460.0,0.00018233,2]
[367525968,1750843842306,-460.0,0.00018233,2]
[367525970,1750843842315,-460.0,0.00018233,2]
[367525972,1750843842324,-489.05,0.00018233,2]
[367525974,1750843842334,-460.0,0.00018233,2]
[367525976,1750843842343,-749.92,0.00018234,2]
[367525978,1750843842352,-167.71,0.00018234,2]
[367525980,1750843842362,-460.0,0.00018234,2]
[367525982,1750843842371,-460.0,0.00018234,2]
[367525984,1750843842381,-695.92,0.00018234,2]
[367525986,1750843842390,-460.0,0.00018234,2]
[367525988,1750843842399,-1728.47,0.00018234,2]
[367525990,1750843842408,-3695.45,0.00018234,2]
[367525992,1750843842419,-460.0,0.00018234,2]
[367525994,1750843842429,-799.24,0.00018234,2]
[367525996,1750843842438,-502.06,0.00018234,2]
[367525998,1750843842447,-1441.09,0.00018234,2]
[367526000,1750843842456,-460.0,0.00018234,2]
[367526002,1750843842465,-731.7107051,0.00018247,2]
[367526004,1750843842475,-1000.0,0.00018289,2]
[367526006,1750843842483,-151.0,0.000183,2]
[367526008,1750843842492,-895.0,0.00018366,2]
[367526010,1750843842501,-895.0,0.00018372,2]
[367526012,1750843842510,-12927.57985468,0.00018383,2]
[367526014,1750843842519,-151.0,0.000184,2]
[367526016,1750843842529,-180.0,0.000184,2]
[367526018,1750843842538,-500.0,0.00018414,2]
[367526020,1750843842547,-1680.0,0.00018417,2]
[367526022,1750843842556,-420.0,0.00018417,2]
[367526024,1750843842565,-420.0,0.00018417,2]
[367526026,1750843842575,-895.0,0.00018429,2]
[367526028,1750843842584,-1682.0,0.00018431,2]
[367526030,1750843842593,-1000.0,0.00018444,2]
[367526032,1750843842602,-895.0,0.0001848,2]
[367526034,1750843842611,-1100.16790343,0.00018485,2]
[367526036,1750843842621,-1682.0,0.000185,2]
[367526038,1750843842630,-544.68,0.00018506,2]
[367526040,1750843842639,-2072.83,0.00018506,2]
[367526042,1750843842649,-616.12,0.00018506,2]
[367526044,1750843842658,-1523.86,0.00018506,2]
[367526046,1750843842669,-460.0,0.00018506,2]
[367526048,1750843842680,-1583.59,0.00018506,2]
[367526050,1750843842689,-460.0,0.00018507,2]
[367526052,1750843842698,-2045.99,0.00018507,2]
[367526054,1750843842707,-460.0,0.00018507,2]
[367526056,1750843842717,-505.76,0.00018507,2]
[367526057,1750843842727,-4516.73,0.00018507,2]
[367526059,1750843842736,-1522.03,0.00018507,2]
[367526061,1750843842747,-461.6,0.00018507,2]
[367526063,1750843842756,-460.0,0.00018507,2]
[367526065,1750843842765,-460.0,0.00018507,2]
[367526067,1750843842774,-477.03,0.00018507,2]
[367526069,1750843842783,-460.0,0.00018507,2]
[367526071,1750843842793,-460.0,0.00018507,2]
[367526073,1750843842803,-489.05,0.00018507,2]
[367526075,1750843842812,-460.0,0.00018507,2]
[367526077,1750843842821,-749.92,0.00018508,2]
[367526079,1750843842831,-460.0,0.00018508,2]
[367526081,1750843842841,-460.0,0.00018508,2]
[367526083,1750843842850,-695.92,0.00018508,2]
[367526085,1750843842859,-460.0,0.00018508,2]
[367526087,1750843842868,-1728.47,0.00018508,2]
[367526089,1750843842878,-3695.45,0.00018508,2]
[367526091,1750843842887,-460.0,0.00018508,2]
[367526093,1750843842896,-799.24,0.00018508,2]
[367526096,1750843842906,-502.06,0.00018508,2]
[367526098,1750843842915,-1441.09,0.00018508,2]
[367526100,1750843842924,-1680.0,0.00018508,2]
[367526102,1750843842933,-460.0,0.00018508,2]
[367526104,1750843842942,-895.0,0.00018511,2]
[367526105,1750843842951,-895.0,0.00018535,2]
[367526107,1750843842961,-895.0,0.00018598,2]
[367526109,1750843842970,-151.0,0.000186,2]
[367526111,1750843842979,-151.0,0.000186,2]
[367526113,1750843842988,-151.0,0.000186,2]
[367526115,1750843842997,-12927.57985468,0.00018624,2]
[367526117,1750843843006,-151.242106,0.00018659,2]
[367526119,1750843843015,-151.0,0.00018659,2]
[367526121,1750843843024,-375.215284,0.00018659,2]
[367526123,1750843843034,-375.215284,0.00018659,2]
[367526125,1750843843042,-299.983382,0.00018659,2]
[367526127,1750843843052,-151.0,0.00018659,2]
[367526129,1750843843060,-151.0,0.00018659,2]
[367526131,1750843843069,-151.0,0.00018659,2]
[367526133,1750843843078,-151.0,0.00018659,2]
[367526135,1750843843087,-151.0,0.00018659,2]
[367526137,1750843843096,-554.128203,0.00018659,2]
[367526139,1750843843106,-151.323677,0.00018659,2]
[367526142,1750843843115,-554.128203,0.00018659,2]
[367526144,1750843843124,-151.0,0.00018659,2]
[367526146,1750843843133,-151.0,0.00018659,2]
[367526148,1750843843143,-151.0,0.00018659,2]
[367526150,1750843843153,-809.919128,0.00018659,2]
[367526166,1750843843285,-809.919128,0.00018659,2]
[367526168,1750843843295,-328.332496,0.00018659,2]
[367526170,1750843843305,-328.332496,0.00018659,2]
[367526172,1750843843314,-151.0,0.00018659,2]
[367526174,1750843843323,-151.575806,0.00018659,2]
[367526176,1750843843333,-151.0,0.00018659,2]
[367526178,1750843843342,-151.0,0.00018659,2]
[367526180,1750843843352,-151.0,0.00018659,2]
[367526182,1750843843361,-1969.476509,0.00018659,2]
[367526184,1750843843371,-1969.476509,0.00018659,2]
[367526186,1750843843379,-151.0,0.00018659,2]
[367526188,1750843843388,-151.0,0.00018659,2]
[367526190,1750843843397,-207.4,0.00018659,2]
[367526192,1750843843406,-151.0,0.00018659,2]
[367526193,1750843843415,-151.0,0.00018659,2]
[367526196,1750843843424,-500.0,0.00018659,2]
[367526198,1750843843433,-151.0,0.00018659,2]
[367526200,1750843843442,-500.0,0.00018659,2]
[367526202,1750843843453,-288.89272804,0.00018659,2]
[367526204,1750843843463,-500.0,0.00018659,2]
[367526206,1750843843472,-1688.0,0.00018659,2]
[367526208,1750843843481,-500.0,0.00018659,2]
[367526210,1750843843490,-500.0,0.00018659,2]
[367526212,1750843843498,-5000.0,0.00018659,2]
[367526214,1750843843507,-500.0,0.00018659,2]
[367526216,1750843843516,-500.0,0.00018659,2]
[367526217,1750843843525,-500.0,0.00018659,2]
[367526220,1750843843534,-500.0,0.00018659,2]
[367526221,1750843843543,-500.0,0.00018659,2]
[367526223,1750843843552,-500.0,0.00018659,2]
[367526225,1750843843561,-500.0,0.00018659,2]
[367526228,1750843843571,-500.0,0.00018659,2]
[367526229,1750843843580,-500.0,0.00018659,2]
[367526232,1750843843590,-500.0,0.00018659,2]
[367526234,1750843843598,-500.0,0.00018659,2]
[367526236,1750843843607,-500.0,0.00018659,2]
[367526237,1750843843617,-500.0,0.00018659,2]
[367526238,1750843843626,-500.0,0.00018659,2]
[367526239,1750843843635,-500.0,0.00018659,2]
[367526240,1750843843644,-500.0,0.00018659,2]
[367526241,1750843843653,-500.0,0.00018659,2]
[367526242,1750843843662,-500.0,0.00018659,2]
[367526243,1750843843674,-500.0,0.00018659,2]
[367526244,1750843843683,-500.0,0.00018659,2]
[367526245,1750843843692,-500.0,0.00018659,2]
[367526246,1750843843701,-500.0,0.00018659,2]
[367526247,1750843843710,-500.0,0.00018659,2]
[367526248,1750843843721,-500.0,0.00018659,2]